[Event "Spring Chess Classic B 2024"]
[Site "Saint Louis"]
[Date "2024.04.19"]
[Round "9.4"]
[White "Kantor, Gergely"]
[Black "Ali Marandi, Cemil Can"]
[Result "1/2-1/2"]
[ECO "D46"]
[WhiteElo "2527"]
[BlackElo "2516"]
[Annotator "TA"]
[PlyCount "45"]
[EventDate "2024.04.11"]
[EventCountry "USA"]
[SourceTitle "playchess.com"]
[Source "ChessBase"]
[SourceQuality "1"]
[TimeControl "7200+30"]

{[%evp 28,45,30,37,37,25,32,27,25,26,32,22,32,0,0,0,35,0,4,0]} 1. d4 {[%emt 0:00:33]} d5 {[%emt 0:01:04]} 2. c4 {[%emt 0:00:30]} c6 {[%emt 0:00:41]} 3. Nf3 {[%emt 0:00:52]} Nf6 {[%emt 0:00:13]} 4. Nc3 {[%emt 0:00:46]} e6 {[%emt 0:03:13]} 5. e3 {[%emt 0:01:12]} Nbd7 {[%emt 0:00:48]} 6. Qc2 {[%emt 0:01:21]} Bd6 {[%emt 0:00:35]} 7. Bd3 {[%emt 0:02:06]} O-O {[%emt 0:00:46]} 8. O-O {[%emt 0:00:44]} e5 {[%emt 0:07:23]} 9. cxd5 {[%emt 0:01:42]} cxd5 {[%emt 0:00:20]} 10. e4 {[%emt 0:01:36]} dxe4 {[%emt 0:07:02]} 11. Nxe4 {[%emt 0:00:38]} Nxe4 {[%emt 0:00:20]} 12. Bxe4 {[%emt 0:00:13]} h6 {[%emt 0:00:09]} 13. Be3 {[%emt 0:01:30]} exd4 {[%emt 0:04:49]} 14. Bh7+ {[%emt 0:02:25]} Kh8 {[%emt 0:00:12]} 15. Bxd4 {[%emt 0:00:10]} Nf6 {[%emt 0:00:28]} 16. Bf5 {[%emt 0:00:53]} Qa5 {[%emt 0:06:07]} 17. Bxc8 {[%emt 0:03:25]} Rfxc8 {[%emt 0:04:37] White has an edge.} 18. Qb3 {[%emt 0:02:10][%csl LRb7,LRf7][%cal Od4f6] [#] Black must now prevent Bxf6!} Qd5 {[%emt 0:09:19]} 19. Qd1 {[%emt 0:08:14] aiming for Bxf6.} Qf5 {[%emt 0:09:03]} 20. Nh4 {[%emt 0:03:58]} Qg5 {[%emt 0:01:13]} 21. Nf3 {[%emt 0:00:48]} Qf5 {[%emt 0:01:16]} 22. Nh4 {[%emt 0:01:34]} Qg5 {[%emt 0:00:07]} 23. Nf3 {[%emt 0:00:04] Weighted Error Value: White=0.07 (flawless) /Black=0.01 (flawless) .  Inaccurate:     	White=2     	---        OK:         	White=4     	Black=4      Best:        	---       	Black=1} 1/2-1/2